[Event "2017 South African Open Ch"]
[Site "Durban"]
[Date "2017.07.16"]
[Round "4"]
[White "Khumalo, Keith"]
[Black "Govindasamy, Nashlen"]
[Result "1/2-1/2"]
[ECO "A05"]
[WhiteElo "1766"]
[BlackElo "2087"]
[Annotator "NA RC"]
[PlyCount "97"]
[EventDate "2017.??.??"]
[EventCountry "RSA"]
[SourceTitle "playchess.com"]
[Source "ChessBase"]
[SourceQuality "1"]
[TimeControl "5400+30"]

{[%evp 12,85,-12,-27,-16,-28,-14,-21,-28,-47,32767,32767,32767,32767,-8,-24,-26,-35,-22,-18,-10,-13,0,-30,-28,-40,-39,-40,-9,-10,-10,-16,-12,-22,-9,-31,-34,-60,32767,32767,32767,32767,32767,32767,32767,32767,-16,-95,-69,32767,32767,32767,32767,32767,32767,32767,32767,32767,32767,32767,32767,32767,32767,32767,0,0,0,0,0,0,0,32767,32767,32767,32767,-216]} 1. Nf3 Nf6 {[%emt 0:01:57]} 2. c4 {[%emt 0:03:41]} c6 {[%emt 0:00:31]} 3. g3 {[%emt 0:00:07]} d5 {[%emt 0:00:08]} 4. Bg2 {[%emt 0:00:27]} e6 {[%emt 0:05:37]} 5. cxd5 {[%emt 0:00:56]} exd5 {[%emt 0:00:14]} 6. d4 {[%emt 0:00:08]} Bd6 {[%emt 0:01:15]} 7. Nc3 {[%emt 0:00:08]} O-O {[%emt 0:00:11]} 8. O-O {[%emt 0:00:06] LiveBook: 20 Games} Nbd7 {[%emt 0:07:15]} 9. a3 {[%emt 0:02:27] D35: Queen's Gambit Declined: Exchange Variation} (9. Qc2 Re8 10. Nh4 Nf8 11. Rd1 Ne6 12. a3 a5 13. Rb1 g6 14. b4 Qe7 15. Qb3 b5 16. e4 dxe4 17. Nxe4 Nxe4 18. Bxe4 {½-½ (56) Sasikiran,K (2643)-Libiszewski,F (2520) Stockholm 2016}) 9... h6 {[%emt 0:00:35]} 10. b4 $146 {[%emt 0:01:44]} ({Predecessor:} 10. Nd2 Re8 11. e4 dxe4 12. Ndxe4 Nxe4 13. Nxe4 Nf6 14. Nxd6 Qxd6 15. Be3 Nd5 16. Qb3 Re7 17. Bxd5 Qxd5 18. Qxd5 cxd5 19. Rac1 Be6 20. Rc3 Rc8 {½-½ (20) Heyne,W (1474)-Schubert,H (1505) Teisnach 2009}) 10... a6 {[%emt 0:00:28]} 11. Nd2 {[%emt 0:00:12]} Re8 {[%emt 0:01:00]} 12. e4 {[%emt 0:00:09]} dxe4 {[%emt 0:09:22]} 13. Ndxe4 {[%emt 0:00:29]} Nxe4 {[%emt 0:00:19]} 14. Nxe4 {[%emt 0:00:06]} Nf6 {[%emt 0:09:50]} 15. Nc5 {[%emt 0:01:55]} Qc7 {[%emt 0:33:47]} 16. Qc2 {[%emt 0:00:53]} Be6 {[%emt 0:01:09]} 17. Re1 {[%emt 0:02:22]} Bd5 {[%emt 0:01:06]} 18. Bd2 {[%emt 0:00:10]} Bxg2 {[%emt 0:01:31]} 19. Kxg2 {[%emt 0:00:02]} Bxc5 {[%emt 0:01:20]} 20. dxc5 {[%emt 0:00:08]} Qd7 {[%emt 0:02:49]} 21. Bc3 {[%emt 0:01:25]} Nd5 {[%emt 0:01:42]} 22. Bb2 {[%emt 0:00:04]} Qg4 {[%emt 0:05:17]} 23. Qd2 {[%emt 0:01:20]} f6 {[%emt 0:08:22]} 24. Qd4 {[%emt 0:02:56]} Qxd4 {[%emt 0:00:14]} 25. Bxd4 {[%emt 0:00:02]} Kf7 {[%emt 0:00:13]} 26. Rxe8 {[%emt 0:00:44]} Rxe8 {[%emt 0:00:03]} 27. Rb1 {[%emt 0:01:07]} Re4 {[%emt 0:00:17]} 28. Bb2 {[%emt 0:00:24]} Ke6 {[%emt 0:01:26]} ({Better is} 28... Re2 $17) 29. Kf1 {[%emt 0:00:11]} (29. Kf3 $11 Kf5 30. h3) 29... h5 {[%emt 0:01:43]} 30. Re1 {[%emt 0:00:22]} Rxe1+ {[%emt 0:00:12]} 31. Kxe1 {[%emt 0:00:01]} a5 {[%emt 0:00:11]} 32. bxa5 {[%emt 0:00:20]} Nc7 {[%emt 0:00:32]} 33. f3 {[%emt 0:03:30]} Na6 {[%emt 0:00:19]} 34. Ke2 {[%emt 0:00:46]} Nxc5 {[%emt 0:00:28]} 35. Ke3 {[%emt 0:00:15]} Kd5 {[%emt 0:00:57]} 36. g4 {[%emt 0:00:05]} hxg4 {[%emt 0:00:15]} 37. fxg4 {[%emt 0:00:02]} Ne6 {[%emt 0:02:15]} 38. h4 {[%emt 0:00:26]} c5 {[%emt 0:00:29]} 39. h5 {[%emt 0:00:26]} Ng5 {[%emt 0:03:49]} 40. Kf4 {[%emt 0:00:35]} Ke6 {[%emt 0:00:12]} 41. Bc1 {[%emt 0:01:27]} Nf7 {[%emt 0:00:24]} 42. Be3 {[%emt 0:00:18]} Ne5 {[%emt 0:00:50]} 43. Ke4 $19 {[%emt 0:02:26]} (43. Bg1 $11 {and White is okay.}) 43... Nxg4 {[%emt 0:00:49]} 44. Bxc5 {[%emt 0:00:06]} Ne5 {[%emt 0:00:28]} 45. Bf8 {[%emt 0:00:32]} Kf7 {[%emt 0:00:22]} 46. Bb4 {[%emt 0:01:20]} Ke6 {[%emt 0:00:15]} 47. Bf8 {[%emt 0:00:07]} Kf7 {[%emt 0:00:03]} 48. Bb4 {[%emt 0:00:07]} Ke6 {[%emt 0:01:03]} 49. Bf8 {[%emt 0:00:02]} 1/2-1/2

[Event "2017 South African Open Ch"]
[Site "Durban"]
[Date "2017.07.16"]
[Round "4"]
[White "Kabi, Thato"]
[Black "Bhawoodien, Shabir Hussain"]
[Result "0-1"]
[ECO "C54"]
[WhiteElo "1752"]
[BlackElo "2066"]
[Annotator "NA RC"]
[PlyCount "74"]
[EventDate "2017.??.??"]
[EventCountry "RSA"]
[SourceTitle "playchess.com"]
[Source "ChessBase"]
[SourceQuality "1"]
[TimeControl "5400+30"]

{[%evp 10,72,2,10,32767,32767,32767,32767,32767,0,0,-1,3,-35,-10,-47,-41,-38,-43,-39,-39,-85,-75,-87,-81,-95,-88,-98,-95,-103,-99,-109,-95,-95,-101,-114,-103,-202,-202,-214,-213,-651,-710,32767,32767,32767,-823,-780,-922,-944,-891,-1005,-1117,-916,-1165,32767,32767,32767,32767,32767,32767,32767,32767,-1434,-5306]} 1. e4 {[%emt 0:00:00]} e5 {[%emt 0:10:50]} 2. d4 {[%emt 0:00:17]} Nc6 {[%emt 0:00:19]} 3. Nf3 {[%emt 0:00:10]} exd4 {[%emt 0:00:02]} 4. Bc4 {[%emt 0:00:10]} Bc5 {[%emt 0:00:55]} 5. c3 {[%emt 0:00:41]} Nf6 {[%emt 0:06:01]} 6. cxd4 {[%emt 0:00:24]} (6. e5 $5 {[%cal Re5f6]} d5 7. exf6 dxc4 8. fxg7 $11) 6... Bb4+ {[%emt 0:00:03]} 7. Bd2 {[%emt 0:00:24]} Bxd2+ {[%emt 0:00:57]} 8. Nbxd2 {[%emt 0:00:15]} d5 {[%emt 0:00:04]} 9. exd5 {[%emt 0:08:40]} Nxd5 {[%emt 0:00:57]} 10. O-O {[%emt 0:03:11]} O-O {[%emt 0:00:07] LiveBook: 91 Games} 11. a3 {[%emt 0:02:48] C54: Giuoco Piano: 4 c3 Nf6, main lines with 5 d4 and 5 d3} (11. Rc1 Nb6 12. Bb3 a5 13. a3 a4 14. Ba2 Nxd4 15. Nxd4 Qxd4 16. Rxc7 Qxb2 17. Nc4 Nxc4 18. Bxc4 Qf6 19. Re1 {½-½ (30) Ma,Q (2637)-Wei,Y (2728) Beijing 2017}) 11... Nb6 {[%emt 0:00:48]} 12. Bd3 {[%emt 0:05:42]} Nxd4 {[%emt 0:00:27]} 13. Nxd4 {[%emt 0:01:13]} Qxd4 {[%emt 0:00:04]} 14. Qc2 {[%emt 0:00:33]} h6 {[%emt 0:03:11]} 15. Rad1 $146 {[%emt 0:01:50]} ({Predecessor:} 15. Nb3 Qf4 16. Rfe1 c6 17. Nc5 Nd5 18. b4 b6 {0-1 (33) Modallal,T (1992)-Mirzoev,A (2558) Beirut 2015}) 15... Bg4 {[%emt 0:04:08]} 16. Nf3 {[%emt 0:14:56]} Qf6 {[%emt 0:00:21]} 17. Be4 {[%emt 0:02:21]} c6 {[%emt 0:00:08]} 18. Rfe1 {[%emt 0:02:29]} Rfe8 {[%emt 0:01:56]} 19. h3 {[%emt 0:01:30]} Be6 {[%emt 0:03:46]} 20. Rd6 {[%emt 0:14:16]} Rad8 {[%emt 0:02:52]} 21. Rxd8 {[%emt 0:03:53]} Rxd8 {[%emt 0:02:09]} 22. b4 {[%emt 0:03:11]} Nd5 {[%emt 0:06:34]} 23. b5 {[%emt 0:09:05]} (23. Qc5 $17 {might work better.}) 23... cxb5 {[%emt 0:03:37]} 24. Qc5 {[%emt 0:01:17]} a6 {[%emt 0:02:24]} 25. Nd4 $2 {[%emt 0:01:03]} (25. Ne5) 25... b6 {[%emt 0:02:11]} 26. Nxe6 {[%emt 0:02:57]} bxc5 {[%emt 0:00:07]} 27. Nxd8 {[%emt 0:00:02]} Qxd8 {[%emt 0:01:30]} 28. Rd1 {[%emt 0:00:10]} Qa5 {[%emt 0:00:51]} 29. Bxd5 {[%emt 0:01:31]} Qxa3 {[%emt 0:00:23]} 30. g3 {[%emt 0:02:35]} c4 {[%emt 0:00:44]} 31. Be4 {[%emt 0:00:51]} Qe7 {[%emt 0:02:24]} 32. Re1 {[%emt 0:01:25]} g6 {[%emt 0:00:10]} 33. Kf1 {[%emt 0:00:20]} Qc5 {[%emt 0:00:03]} 34. Bb7 {[%emt 0:00:47]} a5 {[%emt 0:00:13]} 35. Re8+ {[%emt 0:00:36]} Kg7 {[%emt 0:00:09]} 36. Rc8 {[%emt 0:00:39] [#]} Qxc8 $19 {[%emt 0:00:43]} 37. Bxc8 {[%emt 0:00:28]} a4 0-1

[Event "2017 South African Open Ch"]
[Site "Durban"]
[Date "2017.07.16"]
[Round "5"]
[White "Jere, Daniel"]
[Black "Goosen, Anton"]
[Result "1-0"]
[ECO "A11"]
[WhiteElo "2380"]
[BlackElo "2004"]
[Annotator "NA"]
[PlyCount "31"]
[EventDate "2017.??.??"]
[EventCountry "RSA"]
[SourceTitle "playchess.com"]
[Source "ChessBase"]
[SourceQuality "1"]
[TimeControl "5400+30"]

1. c4 {[%emt 0:00:00]} c6 {[%emt 0:00:00]} 2. g3 {[%emt 0:00:00]} d5 {[%emt 0:00:00]} 3. Bg2 {[%emt 0:00:02]} Nf6 {[%emt 0:00:01]} 4. Nf3 {[%emt 0:00:16]} Bf5 {[%emt 0:00:20]} 5. cxd5 {[%emt 0:01:27]} cxd5 {[%emt 0:00:02]} 6. Qb3 {[%emt 0:00:08]} Qc7 {[%emt 0:01:21]} 7. Nc3 {[%emt 0:00:12]} e6 {[%emt 0:00:24]} 8. d3 {[%emt 0:00:08]} Na6 {[%emt 0:16:05]} 9. Bf4 {[%emt 0:00:45]} Bd6 {[%emt 0:06:40]} 10. Qa4+ {[%emt 0:01:45]} Kd8 {[%emt 0:39:30]} 11. Nb5 {[%emt 0:01:39]} Bb4+ {[%emt 0:13:36]} 12. Qxb4 {[%emt 0:00:19]} Nxb4 {[%emt 0:00:01]} 13. Bxc7+ {[%emt 0:00:15]} Kd7 {[%emt 0:00:03]} 14. Ne5+ {[%emt 0:00:08]} Kc8 {[%emt 0:03:16]} 15. Rc1 {[%emt 0:00:18]} Nxa2 {[%emt 0:00:04]} 16. Nd6# {[%emt 0:00:04]} 1-0

[Event "2017 South African Open Ch"]
[Site "Durban"]
[Date "2017.07.16"]
[Round "5"]
[White "Mwali, Chitumbo"]
[Black "Bhawoodien, Mohamed Ozayr"]
[Result "1-0"]
[ECO "A20"]
[WhiteElo "2356"]
[BlackElo "2103"]
[Annotator "NA"]
[PlyCount "47"]
[EventDate "2017.??.??"]
[EventCountry "RSA"]
[SourceTitle "playchess.com"]
[Source "ChessBase"]
[SourceQuality "1"]
[TimeControl "5400+30"]

1. c4 e5 {[%emt 0:05:33]} 2. g3 {[%emt 0:00:02]} Nf6 {[%emt 0:00:23]} 3. Bg2 {[%emt 0:00:13]} c6 {[%emt 0:00:08]} 4. d4 {[%emt 0:00:56]} Bb4+ {[%emt 0:00:36]} 5. Bd2 {[%emt 0:00:17]} Bxd2+ {[%emt 0:00:08]} 6. Qxd2 {[%emt 0:00:03]} d6 {[%emt 0:00:09]} 7. Nc3 {[%emt 0:03:41]} O-O {[%emt 0:00:07]} 8. e3 {[%emt 0:00:10]} Be6 {[%emt 0:02:16]} 9. b3 {[%emt 0:07:22]} exd4 {[%emt 0:00:48]} 10. Qxd4 {[%emt 0:00:46]} d5 {[%emt 0:01:14]} 11. cxd5 {[%emt 0:00:52]} Nxd5 {[%emt 0:00:06]} 12. Nxd5 {[%emt 0:00:25]} Bxd5 {[%emt 0:00:11]} 13. Bxd5 {[%emt 0:00:25]} cxd5 {[%emt 0:00:09]} 14. Nf3 {[%emt 0:08:30]} Nc6 {[%emt 0:00:09]} 15. Qf4 {[%emt 0:00:15]} Qa5+ {[%emt 0:04:43]} 16. Kf1 {[%emt 0:00:07]} Nb4 {[%emt 0:06:56]} 17. Nd4 {[%emt 0:06:09]} Rac8 {[%emt 0:12:41]} 18. Kg2 {[%emt 0:03:07]} Nc2 {[%emt 0:06:38]} 19. Nf5 {[%emt 0:12:33]} Nxa1 {[%emt 0:01:21]} 20. Qg4 {[%emt 0:07:07]} Qc3 {[%emt 0:01:23]} 21. Rc1 {[%emt 0:00:12]} Qf6 {[%emt 0:01:04]} 22. Rxc8 {[%emt 0:04:01]} h6 {[%emt 0:09:33]} 23. Rc1 {[%emt 0:05:20]} h5 {[%emt 0:03:41]} 24. Qf3 1-0

[Event "2017 South African Open Ch"]
[Site "Durban"]
[Date "2017.07.16"]
[Round "5"]
[White "Oatlhotse, Providence"]
[Black "Makoto, Rodwell"]
[Result "1/2-1/2"]
[ECO "D70"]
[WhiteElo "2190"]
[BlackElo "2372"]
[Annotator "NA"]
[PlyCount "37"]
[EventDate "2017.??.??"]
[EventCountry "RSA"]
[SourceTitle "playchess.com"]
[Source "ChessBase"]
[SourceQuality "1"]
[TimeControl "5400+30"]

1. d4 {[%emt 0:00:00]} Nf6 {[%emt 0:00:05]} 2. c4 {[%emt 0:00:00]} g6 {[%emt 0:00:44]} 3. Nf3 {[%emt 0:00:04]} Bg7 {[%emt 0:00:07]} 4. Nc3 {[%emt 0:00:06]} d5 {[%emt 0:00:04]} 5. cxd5 {[%emt 0:00:07]} Nxd5 {[%emt 0:00:05]} 6. Qb3 {[%emt 0:00:04]} Nxc3 {[%emt 0:03:01]} 7. bxc3 {[%emt 0:00:16]} O-O {[%emt 0:00:09]} 8. e3 {[%emt 0:01:23]} c5 {[%emt 0:00:48]} 9. Be2 {[%emt 0:00:17]} Qc7 {[%emt 0:08:26]} 10. O-O {[%emt 0:02:07]} Nd7 {[%emt 0:00:55]} 11. a4 {[%emt 0:02:49]} Nf6 {[%emt 0:01:02]} 12. Ba3 {[%emt 0:00:57]} b6 {[%emt 0:02:36]} 13. a5 {[%emt 0:01:46]} Be6 {[%emt 0:01:13]} 14. Qb2 {[%emt 0:17:35]} Rab8 {[%emt 0:11:34]} 15. axb6 {[%emt 0:05:48]} axb6 {[%emt 0:00:04]} 16. Bb5 {[%emt 0:02:14]} Ne4 {[%emt 0:01:17]} 17. Nd2 {[%emt 0:08:02]} Nd6 {[%emt 0:03:40]} 18. Be2 {[%emt 0:00:45]} Bd5 {[%emt 0:02:15]} 19. Bf3 {[%emt 0:05:37]} 1/2-1/2

[Event "2017 South African Open Ch"]
[Site "Durban"]
[Date "2017.07.16"]
[Round "5"]
[White "Pon, Matt"]
[Black "Kobese, Watu"]
[Result "1-0"]
[ECO "A06"]
[WhiteElo "2163"]
[BlackElo "2367"]
[Annotator "NA"]
[PlyCount "63"]
[EventDate "2017.??.??"]
[EventCountry "RSA"]
[SourceTitle "playchess.com"]
[Source "ChessBase"]
[SourceQuality "1"]
[TimeControl "5400+30"]

1. Nf3 {[%emt 0:00:00]} d5 {[%emt 0:00:27]} 2. g3 {[%emt 0:00:20]} Nc6 {[%emt 0:00:49]} 3. c4 {[%emt 0:01:16]} Nf6 {[%emt 0:02:57]} 4. Bg2 {[%emt 0:02:10]} e5 {[%emt 0:00:53]} 5. cxd5 {[%emt 0:01:01]} Nxd5 {[%emt 0:00:09]} 6. d3 {[%emt 0:00:39]} Be7 {[%emt 0:00:23]} 7. O-O {[%emt 0:01:46]} O-O {[%emt 0:02:16]} 8. Nc3 {[%emt 0:01:50]} Nb6 {[%emt 0:00:08]} 9. Bd2 {[%emt 0:02:50]} Re8 {[%emt 0:00:31]} 10. Rc1 {[%emt 0:03:44]} Bf8 {[%emt 0:00:34]} 11. Ne4 {[%emt 0:09:51] A29: English Opening: Four Knights Variation with 4 g3} (11. a3 Nd4 12. Ne4 c6 13. Nc5 Bxc5 14. Rxc5 Bg4 15. Re1 Bxf3 16. exf3 Nd5 17. b4 Qd7 18. Re4 f5 19. Re1 {1-0 (50) Dvalishvili,P (2440)-Iljiushenok,I (2491) Moscow 2015}) 11... Nd4 {[%emt 0:03:12]} 12. Nxd4 exd4 {[%emt 0:00:46]} 13. e3 $146 {[%emt 0:07:15]} ({Predecessor:} 13. Re1 Be6 14. Ng5 Bd5 15. Bxd5 Nxd5 16. Qb3 b6 17. Rc6 Bc5 18. Qc4 Qd7 19. Rxc5 bxc5 20. Qxc5 {0-1 (85) Hernando Pertierra,J (2383)-Alvarez Abejon,A (2038) Madrid 2011}) 13... c6 {[%emt 0:13:36]} 14. exd4 {[%emt 0:06:20]} Qxd4 {[%emt 0:05:01]} 15. Bc3 {[%emt 0:01:35]} Qd8 {[%emt 0:04:00]} 16. Qf3 {[%emt 0:10:08]} f5 {[%emt 0:09:55]} 17. Nd2 {[%emt 0:01:40]} Na4 {[%emt 0:00:19]} 18. Nb3 {[%emt 0:03:31]} Nxc3 {[%emt 0:03:31]} 19. bxc3 {[%emt 0:01:00]} g6 {[%emt 0:00:39]} 20. d4 {[%emt 0:01:36]} a5 {[%emt 0:04:21]} 21. d5 {[%emt 0:01:31]} c5 {[%emt 0:03:25]} 22. Nd2 {[%emt 0:01:38]} Bh6 {[%emt 0:01:49]} 23. Rcd1 {[%emt 0:00:44]} Bd7 {[%emt 0:04:05]} 24. d6 {[%emt 0:04:56]} Ba4 {[%emt 0:16:00]} 25. Qd5+ {[%emt 0:12:49]} Kf8 {[%emt 0:01:44]} 26. Nb3 {[%emt 0:02:10]} Bg7 {[%emt 0:04:16]} 27. Nxc5 {[%emt 0:03:06]} Bxd1 {[%emt 0:01:26]} 28. Rxd1 {[%emt 0:00:27]} Bxc3 $2 {[%emt 0:07:26]} (28... Re5) 29. Nxb7 $2 {[%emt 0:05:38]} (29. Qxb7 Qc8 30. Qxh7 Qxc5 31. Bd5 Qxd5 32. Rxd5) 29... Qf6 {[%emt 0:05:04]} 30. d7 {[%emt 0:01:19]} Red8 {[%emt 0:00:19]} 31. Nc5 $18 {[%emt 0:03:09]} Ra6 {[%emt 0:01:02]} 32. Nxa6 1-0

[Event "2017 South African Open Ch"]
[Site "Durban"]
[Date "2017.07.16"]
[Round "5"]
[White "Mnguni, Jacob Dumisani"]
[Black "Choko, Siyabonga V"]
[Result "1-0"]
[ECO "A20"]
[WhiteElo "2147"]
[BlackElo "1968"]
[Annotator "NA"]
[PlyCount "91"]
[EventDate "2017.??.??"]
[EventCountry "RSA"]
[SourceTitle "playchess.com"]
[Source "ChessBase"]
[SourceQuality "1"]
[TimeControl "5400+30"]

1. c4 {[%emt 0:00:00]} e5 {[%emt 0:00:04]} 2. g3 {[%emt 0:00:00]} g6 {[%emt 0:00:08]} 3. Bg2 {[%emt 0:00:00]} Bg7 {[%emt 0:00:06]} 4. Nc3 {[%emt 0:00:00]} Nf6 {[%emt 0:00:09]} 5. Nf3 {[%emt 0:00:00]} d6 {[%emt 0:00:09]} 6. O-O {[%emt 0:00:00]} O-O {[%emt 0:00:05]} 7. d3 {[%emt 0:00:00]} h6 {[%emt 0:00:12]} 8. Rb1 {[%emt 0:00:12]} Nc6 {[%emt 0:01:24]} 9. Nd2 {[%emt 0:00:23]} Rb8 {[%emt 0:00:13]} 10. b4 {[%emt 0:00:05]} Be6 {[%emt 0:00:27]} 11. Nd5 {[%emt 0:00:05]} Ne7 {[%emt 0:01:07]} 12. Nxe7+ {[%emt 0:01:19]} Qxe7 {[%emt 0:00:07]} 13. b5 {[%emt 0:00:06]} c5 {[%emt 0:00:25]} 14. bxc6 {[%emt 0:00:20]} bxc6 {[%emt 0:00:08]} 15. Rxb8 {[%emt 0:02:31]} Rxb8 {[%emt 0:00:01]} 16. Bxc6 {[%emt 0:00:21]} d5 {[%emt 0:00:21]} 17. Qa4 {[%emt 0:02:54]} Rc8 {[%emt 0:02:06]} 18. Ba3 {[%emt 0:24:14]} Qc7 {[%emt 0:00:57]} 19. cxd5 {[%emt 0:02:46]} Nxd5 {[%emt 0:09:29]} 20. Rc1 {[%emt 0:04:28]} Qb6 {[%emt 0:10:17]} 21. Nb3 {[%emt 0:02:19]} Bf8 {[%emt 0:07:45]} 22. Bxf8 {[%emt 0:12:03]} Kxf8 {[%emt 0:00:03]} 23. Bxd5 {[%emt 0:10:48]} Rxc1+ {[%emt 0:00:40]} 24. Nxc1 {[%emt 0:00:02]} Bxd5 {[%emt 0:00:08]} 25. Nb3 {[%emt 0:01:10]} h5 {[%emt 0:03:23]} 26. Kf1 {[%emt 0:07:09]} Kg7 {[%emt 0:03:50]} 27. Qa5 {[%emt 0:00:28]} Qxa5 {[%emt 0:06:39]} 28. Nxa5 {[%emt 0:00:01]} f5 {[%emt 0:00:12]} 29. Nb3 {[%emt 0:01:51]} Kf6 {[%emt 0:01:13]} 30. f3 {[%emt 0:00:45]} e4 {[%emt 0:04:30]} 31. Kf2 {[%emt 0:00:46]} h4 {[%emt 0:11:36]} 32. gxh4 {[%emt 0:03:45]} exf3 {[%emt 0:01:14]} 33. exf3 {[%emt 0:00:02]} f4 {[%emt 0:00:16]} 34. Nc1 {[%emt 0:00:19]} a5 {[%emt 0:05:09]} 35. a3 {[%emt 0:00:20]} a4 {[%emt 0:00:44]} 36. Ne2 {[%emt 0:00:11]} Ke5 {[%emt 0:00:29]} 37. d4+ {[%emt 0:00:27]} Kf5 {[%emt 0:00:38]} 38. Nc3 {[%emt 0:00:35]} Bb3 {[%emt 0:00:22]} 39. Ke2 {[%emt 0:01:16]} Bc4+ {[%emt 0:11:10]} 40. Kd2 {[%emt 0:00:17]} Bb3 {[%emt 0:04:13]} 41. Ne4 {[%emt 0:00:33]} Ke6 {[%emt 0:05:11]} 42. Nc3 {[%emt 0:00:58]} Kf5 {[%emt 0:00:26]} 43. Kd3 {[%emt 0:00:05]} g5 {[%emt 0:00:48]} 44. hxg5 {[%emt 0:00:14]} Kxg5 {[%emt 0:00:01]} 45. Ke4 {[%emt 0:00:18]} Bf7 {[%emt 0:00:49]} 46. d5 {[%emt 0:00:21]} 1-0

[Event "2017 South African Open Ch"]
[Site "Durban"]
[Date "2017.07.16"]
[Round "5"]
[White "De Abreu, Roberto N"]
[Black "Subke, Jason James"]
[Result "0-1"]
[ECO "D71"]
[WhiteElo "2145"]
[BlackElo "1932"]
[Annotator "NA"]
[PlyCount "93"]
[EventDate "2017.??.??"]
[EventCountry "RSA"]
[SourceTitle "playchess.com"]
[Source "ChessBase"]
[SourceQuality "1"]
[TimeControl "5400+30"]

1. d4 {[%emt 0:00:00]} Nf6 {[%emt 0:01:16]} 2. c4 {[%emt 0:00:00]} g6 {[%emt 0:00:11]} 3. g3 {[%emt 0:00:00]} Bg7 {[%emt 0:00:09]} 4. Bg2 {[%emt 0:00:00]} O-O {[%emt 0:00:11]} 5. Nc3 {[%emt 0:00:00]} d6 {[%emt 0:00:10]} 6. Nf3 {[%emt 0:00:01]} c6 {[%emt 0:01:00]} 7. O-O {[%emt 0:00:06]} d5 {[%emt 0:00:13]} 8. Qb3 {[%emt 0:01:06]} Na6 {[%emt 0:02:41]} 9. Rd1 {[%emt 0:01:53]} Nc7 {[%emt 0:01:34]} 10. h3 {[%emt 0:12:21]} b6 {[%emt 0:07:03]} 11. Bf4 {[%emt 0:06:17]} Ne6 {[%emt 0:00:48]} 12. Be5 {[%emt 0:01:05]} Bb7 {[%emt 0:01:10]} 13. e3 {[%emt 0:05:52]} Nh5 {[%emt 0:04:14]} 14. Bxg7 {[%emt 0:04:29]} Kxg7 {[%emt 0:00:23]} 15. cxd5 {[%emt 0:01:22]} cxd5 {[%emt 0:00:09]} 16. Ne5 {[%emt 0:00:13]} Nf6 {[%emt 0:00:32]} 17. Rac1 {[%emt 0:00:32]} Rc8 {[%emt 0:02:35]} 18. Nb5 {[%emt 0:06:26]} a6 {[%emt 0:01:04]} 19. Nc3 {[%emt 0:00:25]} Qd6 {[%emt 0:02:00]} 20. h4 {[%emt 0:03:09]} Rc7 {[%emt 0:02:16]} 21. Nd3 {[%emt 0:04:33]} Rfc8 {[%emt 0:01:55]} 22. Bh3 {[%emt 0:01:22]} Ne4 {[%emt 0:09:07]} 23. Nxe4 {[%emt 0:06:47]} dxe4 {[%emt 0:00:18]} 24. Rxc7 {[%emt 0:01:51]} Rxc7 {[%emt 0:00:19]} 25. Bxe6 {[%emt 0:00:36]} exd3 {[%emt 0:05:37]} 26. Bxf7 {[%emt 0:12:55]} Qc6 {[%emt 0:00:28]} 27. d5 {[%emt 0:07:37]} Qc2 {[%emt 0:01:20]} 28. Be6 {[%emt 0:05:00]} d2 {[%emt 0:03:58]} 29. Qxc2 {[%emt 0:01:42]} Rxc2 {[%emt 0:00:11]} 30. e4 {[%emt 0:00:01]} a5 {[%emt 0:03:08]} 31. Kg2 {[%emt 0:03:22]} Rxb2 {[%emt 0:02:39]} 32. Kf3 {[%emt 0:02:13]} Kf6 {[%emt 0:00:14]} 33. Kf4 {[%emt 0:02:50]} h6 {[%emt 0:03:43]} 34. e5+ {[%emt 0:00:12]} Kg7 {[%emt 0:00:07]} 35. d6 {[%emt 0:00:18]} exd6 {[%emt 0:05:38]} 36. exd6 {[%emt 0:00:01]} Rb4+ {[%emt 0:00:55]} 37. Ke3 {[%emt 0:00:05]} Re4+ {[%emt 0:00:26]} 38. Kxd2 {[%emt 0:00:01]} Rxe6 {[%emt 0:00:23]} 39. Kc3 {[%emt 0:00:52]} Re8 {[%emt 0:00:31]} 40. Rb1 {[%emt 0:01:39]} Rc8+ {[%emt 0:02:43]} 41. Kd4 {[%emt 0:00:30]} Rc6 {[%emt 0:00:26]} 42. Ke5 {[%emt 0:00:23]} Kf7 {[%emt 0:00:22]} 43. d7 {[%emt 0:01:18]} Ke7 {[%emt 0:00:26]} 44. Rd1 {[%emt 0:00:12]} Rc5+ {[%emt 0:01:11]} 45. Kf4 {[%emt 0:00:06]} Rf5+ {[%emt 0:01:20]} 46. Ke3 {[%emt 0:01:08]} Re5+ {[%emt 0:00:38]} 47. Kd2 {[%emt 0:03:07]} 0-1

[Event "2017 South African Open Ch"]
[Site "Durban"]
[Date "2017.07.16"]
[Round "5"]
[White "Govindasamy, Nashlen"]
[Black "Mahlangu, Sipho"]
[Result "1-0"]
[ECO "A40"]
[WhiteElo "2087"]
[BlackElo "1739"]
[Annotator "NA"]
[PlyCount "67"]
[EventDate "2017.??.??"]
[EventCountry "RSA"]
[SourceTitle "playchess.com"]
[Source "ChessBase"]
[SourceQuality "1"]
[TimeControl "5400+30"]

1. d4 {[%emt 0:05:10]} Nf6 {[%emt 0:00:03]} 2. c4 {[%emt 0:00:07]} e6 {[%emt 0:00:06]} 3. g3 {[%emt 0:00:06]} Bb4+ {[%emt 0:01:05]} 4. Bd2 {[%emt 0:00:13]} Bxd2+ {[%emt 0:00:29]} 5. Qxd2 {[%emt 0:00:08]} O-O {[%emt 0:00:21]} 6. Bg2 {[%emt 0:00:08]} d6 {[%emt 0:01:17]} 7. e4 {[%emt 0:06:28]} e5 {[%emt 0:05:22]} 8. d5 {[%emt 0:00:54]} a5 {[%emt 0:00:22]} 9. Ne2 {[%emt 0:00:40]} Nbd7 {[%emt 0:00:09]} 10. O-O {[%emt 0:00:29]} Nc5 {[%emt 0:00:43]} 11. Nbc3 {[%emt 0:00:20]} a4 {[%emt 0:00:20]} 12. Rab1 {[%emt 0:05:41]} Bg4 {[%emt 0:00:36]} 13. Nc1 {[%emt 0:17:05]} Qc8 {[%emt 0:01:47]} 14. b4 {[%emt 0:15:14]} axb3 {[%emt 0:00:14]} 15. axb3 {[%emt 0:00:02]} Bh3 {[%emt 0:00:37]} 16. Re1 {[%emt 0:00:29]} Bxg2 {[%emt 0:00:11]} 17. Kxg2 {[%emt 0:00:01]} Qg4 {[%emt 0:00:41]} 18. f3 {[%emt 0:09:11]} Qd7 {[%emt 0:00:02]} 19. Nd3 {[%emt 0:01:03]} Nxd3 {[%emt 0:00:19]} 20. Qxd3 {[%emt 0:00:03]} Ra3 {[%emt 0:00:54]} 21. Qc2 {[%emt 0:06:03]} Rfa8 {[%emt 0:01:44]} 22. Qb2 {[%emt 0:00:45]} Qd8 {[%emt 0:04:14]} 23. Na4 {[%emt 0:04:28]} R3xa4 {[%emt 0:00:53]} 24. bxa4 {[%emt 0:00:02]} b6 {[%emt 0:00:22]} 25. Qa3 {[%emt 0:03:11]} Nd7 {[%emt 0:00:13]} 26. Rb5 {[%emt 0:00:27]} Qg5 {[%emt 0:00:50]} 27. Re2 {[%emt 0:03:23]} Nc5 {[%emt 0:00:02]} 28. a5 {[%emt 0:02:32]} Nb7 {[%emt 0:00:16]} 29. axb6 {[%emt 0:11:45]} Rxa3 {[%emt 0:00:19]} 30. bxc7 {[%emt 0:00:02]} g6 {[%emt 0:03:36]} 31. c8=Q+ {[%emt 0:01:11]} Kg7 {[%emt 0:00:01]} 32. Qxb7 {[%emt 0:00:57]} Qc1 {[%emt 0:00:22]} 33. Rb1 {[%emt 0:00:43]} Qxc4 {[%emt 0:00:09]} 34. Rf2 {[%emt 0:00:24]} 1-0